Body,Body Name,Date,TransNo,Amount � (Excl VAT),Supplier name,Description,Expense Area,Expense Type,Expense Code,
http://opendatacommunities.org/id/london-borough-council/sutton,London Borough of Sutton,20/09/2021,10004053,78.91, W M MORRISONS.COM,GROCERIES,Health and Wellbeing,Free Milk,A41007,
http://opendatacommunities.org/id/london-borough-council/sutton,London Borough of Sutton,18/09/2021,10004053,113.34, SMYTHS TOYS CRAWLEY,TOYS AND EQUIPMENT,Health and Wellbeing,Equipment And Materials Purchase,A40000,
http://opendatacommunities.org/id/london-borough-council/sutton,London Borough of Sutton,16/09/2021,10004053,70.96, COSTCO WHOLESALE #121,TOYS AND EQUIPMENT,Health and Wellbeing,Equipment And Materials Purchase,A40000,
http://opendatacommunities.org/id/london-borough-council/sutton,London Borough of Sutton,16/09/2021,10004053,78.32, AMZNMKTPLACE AMAZON.CO,TOYS AND EQUIPMENT,Health and Wellbeing,Equipment And Materials Purchase,A40000,
http://opendatacommunities.org/id/london-borough-council/sutton,London Borough of Sutton,16/09/2021,10004053,-12.49, SP   TP TOYS,TOY REFUND,Health and Wellbeing,Equipment And Materials Purchase,A40000,
http://opendatacommunities.org/id/london-borough-council/sutton,London Borough of Sutton,26/08/2021,10004053,62.95, AMAZON.CO.UK J79CZ7495,TOYS & EQUIPMENT,Health and Wellbeing,Equipment And Materials Purchase,A40000,
http://opendatacommunities.org/id/london-borough-council/sutton,London Borough of Sutton,26/08/2021,10004053,222.48, SP   TP TOYS,TOYS & EQUIPMENT,Health and Wellbeing,Equipment And Materials Purchase,A40000,
http://opendatacommunities.org/id/london-borough-council/sutton,London Borough of Sutton,26/08/2021,10004053,-222.48, SP   TP TOYS,TOYS & EQUIPMENT,Health and Wellbeing,Equipment And Materials Purchase,A40000,
http://opendatacommunities.org/id/london-borough-council/sutton,London Borough of Sutton,23/09/2021,10004053,8.32, TWINKL LIMITED,TWINKL SUBSCRIPTION,Health and Wellbeing,Equipment And Materials Purchase,A40000,
http://opendatacommunities.org/id/london-borough-council/sutton,London Borough of Sutton,08/09/2021,10004053,204.14, SP   TP TOYS,TOYS AND EQUIPMENT,Health and Wellbeing,Equipment And Materials Purchase,A40000,
http://opendatacommunities.org/id/london-borough-council/sutton,London Borough of Sutton,09/09/2021,10004053,12.03, AMAZON.CO.UK CS64N67L5,TOYS AND EQUIPMENT,Health and Wellbeing,Equipment And Materials Purchase,A40000,
http://opendatacommunities.org/id/london-borough-council/sutton,London Borough of Sutton,09/09/2021,10004053,22.65, AMZNMKTPLACE,TOYS AND EQUIPMENT,Health and Wellbeing,Equipment And Materials Purchase,A40000,
http://opendatacommunities.org/id/london-borough-council/sutton,London Borough of Sutton,06/09/2021,10004053,80.48, W M MORRISONS.COM,GROCERIES,Health and Wellbeing,Provisions,A41006,
http://opendatacommunities.org/id/london-borough-council/sutton,London Borough of Sutton,06/09/2021,10004053,16.90, SAINSBURYS S/MKTS,GROCERIES,Health and Wellbeing,Provisions,A41006,
http://opendatacommunities.org/id/london-borough-council/sutton,London Borough of Sutton,31/08/2021,10004053,47.87, W M MORRISONS.COM,GROCERIES,Health and Wellbeing,Provisions,A41006,
http://opendatacommunities.org/id/london-borough-council/sutton,London Borough of Sutton,14/09/2021,10004053,28.33, TESCO STORE 2560,GROCERIES,Health and Wellbeing,Free Milk,A41007,
http://opendatacommunities.org/id/london-borough-council/sutton,London Borough of Sutton,21/09/2021,10004053,270.00, JACKSONSART.COM,AWARDS FOR ANNUAL YOUTH ART EXHIBITION,Health and Wellbeing,Publicity Materials,A43070,
http://opendatacommunities.org/id/london-borough-council/sutton,London Borough of Sutton,27/08/2021,10004053,20.65, FACEBK AXQTU63KE2,SOCIAL MEDIA POST,Health and Wellbeing,Publicity,A44266,
http://opendatacommunities.org/id/london-borough-council/sutton,London Borough of Sutton,23/09/2021,10004053,660.31, BC.BASECAMP 3 4831504,SOFTWARE FOR LIBRARIES CONSORTIUM COMMS TOOL,Health and Wellbeing,IT Software Maintenance,A45045,
http://opendatacommunities.org/id/london-borough-council/sutton,London Borough of Sutton,24/09/2021,10004053,18.16, MAILCHIMP    MONTHLY,TRANSACTION FEE,Health and Wellbeing,Transaction Charges,A44251,
http://opendatacommunities.org/id/london-borough-council/sutton,London Borough of Sutton,24/09/2021,10004053,6.90, CLOCKTOWER CARS,COURIER: COMM HEALTH EVENT: 25 SEPT,Health and Wellbeing,Provider Contract Payments,A44290,
http://opendatacommunities.org/id/london-borough-council/sutton,London Borough of Sutton,03/09/2021,10004053,8.32, SPOTIFY P16C1AF436,MUSIC FOR WEDDINGS,Resources,Subscriptions,A47010,
http://opendatacommunities.org/id/london-borough-council/sutton,London Borough of Sutton,17/09/2021,10004053,3.33, WAITROSE 559,ANTIBAC WIPES,Resources,Miscellaneous Expenses,A49000,
http://opendatacommunities.org/id/london-borough-council/sutton,London Borough of Sutton,14/09/2021,10004053,31.81, B & Q 1191,PAINT FOR BENCHES,Resources,Miscellaneous Expenses,A49000,
http://opendatacommunities.org/id/london-borough-council/sutton,London Borough of Sutton,15/09/2021,10004053,7.65, MAILCHIMP    MONTHLY,WEB HISTING,Resources,IT Software Purchase,A45040,
http://opendatacommunities.org/id/london-borough-council/sutton,London Borough of Sutton,14/09/2021,10004053,278.35, MAILCHIMP    MONTHLY,WEB HOSTING,Resources,IT Software Purchase,A45040,
http://opendatacommunities.org/id/london-borough-council/sutton,London Borough of Sutton,31/08/2021,10004053,7.70, AMAZON.CO.UK W18P233P5,"SPLIT - KENSINGTON VALUKEYBOARD - WIRED KEYBOARD FOR PC, LAPTOP, DESKTOP PC, COMPUTER, NOTEBOOK. USB KEYBOARD COMPATIBLE WITH DELL, ACER, HP, SAMSUNG AND MORE (68.96%)",Resources,Equipment And Materials Purchase,A40000,
http://opendatacommunities.org/id/london-borough-council/sutton,London Borough of Sutton,31/08/2021,10004053,3.47, AMAZON.CO.UK W18P233P5,BALANCING ENTRY AMOUNT (31.04%),Resources,Equipment And Materials Purchase,A40000,
http://opendatacommunities.org/id/london-borough-council/sutton,London Borough of Sutton,10/09/2021,10004053,75.00, SOUNDCLOUD,SOUND CLOUD SUBSCRIPTION RENEWAL FOR COMMITTEE SERVICES,Resources,Equipment And Materials Purchase,A40000,
http://opendatacommunities.org/id/london-borough-council/sutton,London Borough of Sutton,07/09/2021,10004053,8.47, AMZNMKTPLACE,"SPLIT - 3 PACK EARPHONES, IN-EAR HEADPHONES WIRED EARBUDS, NOISE ISOLATING HEADSET WITH MICROPHONE, HEAVY DEEP BASS, COMPATIBLE WITH PHONE PAD SAMSUNG HUAWEI (67.06%)",Resources,Equipment And Materials Purchase,A40000,
http://opendatacommunities.org/id/london-borough-council/sutton,London Borough of Sutton,07/09/2021,10004053,4.16, AMZNMKTPLACE,BALANCING ENTRY AMOUNT (32.94%),Resources,Equipment And Materials Purchase,A40000,
http://opendatacommunities.org/id/london-borough-council/sutton,London Borough of Sutton,10/09/2021,10004053,28.06, AMAZON.CO.UK CF93N4UU5,AMAZON - HEADSET FOR LD AGREED BY SM,Resources,IT Hardware Purchase,A45005,
http://opendatacommunities.org/id/london-borough-council/sutton,London Borough of Sutton,20/09/2021,10004053,0.14, FACEBK AXQTU63KE2,SUBSCRIPTION FOR GOOGLE ADDON PORTANT - SEPTEMBER FEE,Resources,IT Software Purchase,A45040,
http://opendatacommunities.org/id/london-borough-council/sutton,London Borough of Sutton,19/09/2021,10004053,5.09, PORTANT.CO,SUBSCRIPTION FOR GOOGLE ADDON PORTANT - SEPTEMBER,Resources,IT Software Purchase,A45040,
http://opendatacommunities.org/id/london-borough-council/sutton,London Borough of Sutton,02/09/2021,10004053,15.22, PAYPAL  GSUITEADDON,MONTHLY SUBSCRIPTION GSUITE FOR CEDT & CP MEETINGS (3 ACCOUNTS),Resources,Childrens Services - Other Recovery,R20101,
http://opendatacommunities.org/id/london-borough-council/sutton,London Borough of Sutton,01/09/2021,10004053,30.40, PAYPAL  GSUITEADDON,MONTHLY SUBSCRIPTION GSUITE FOR CEDT & CP MEETINGS (3 ACCOUNTS),Resources,Childrens Services - Other Recovery,R20101,
http://opendatacommunities.org/id/london-borough-council/sutton,London Borough of Sutton,08/09/2021,10004053,130.96, BSI STANDARDS LTD,CONSTRUCTION PREQUALIFICATION QUESTIONNAIRES FROM BSI,Resources,Stationery,A43015,
http://opendatacommunities.org/id/london-borough-council/sutton,London Borough of Sutton,27/08/2021,10004053,135.00, WWW.DIRECT-FUNDRAISING,25 X CHARITY COUNTER BUCKETS WITH LABELS,Resources,Equipment And Materials Purchase,A40000,
http://opendatacommunities.org/id/london-borough-council/sutton,London Borough of Sutton,09/09/2021,10004053,200.00, FACEBK HX8DZ73GR2,STRONGER SUTTON SURVEY ADS,Resources,Surveys,A44136,
http://opendatacommunities.org/id/london-borough-council/sutton,London Borough of Sutton,06/09/2021,10004053,80.00, TWITTER ONLINE ADS,STRONGER SUTTON ADS,Resources,Surveys,A44136,
http://opendatacommunities.org/id/london-borough-council/sutton,London Borough of Sutton,06/09/2021,10004053,40.00, TWITTER ONLINE ADS,STRONGER SUTTON CONVERSATION ADS,Resources,Surveys,A44136,
http://opendatacommunities.org/id/london-borough-council/sutton,London Borough of Sutton,04/09/2021,10004053,200.00, FACEBK KPSJX6KFR2,NOT ALONE IN SUTTON AND STRONGER SUTTON ADS,Resources,Surveys,A44136,
http://opendatacommunities.org/id/london-borough-council/sutton,London Borough of Sutton,01/09/2021,10004053,40.00, TWITTER ONLINE ADS,STRONGER SUTTON CONVERSATION ADS,Resources,Surveys,A44136,
http://opendatacommunities.org/id/london-borough-council/sutton,London Borough of Sutton,01/09/2021,10004053,44.69, GOOGLE  ADS8517410550,STRONGER SUTTON CONVERSATION ADS,Resources,Surveys,A44136,
http://opendatacommunities.org/id/london-borough-council/sutton,London Borough of Sutton,12/09/2021,10004053,200.00, FACEBK VUZ4483GR2,STRONGER SUTTON CONVERSATION ADS,Resources,Surveys,A44136,
http://opendatacommunities.org/id/london-borough-council/sutton,London Borough of Sutton,11/09/2021,10004053,76.33, TWITTER ONLINE ADS,STRONGER SUTTON CONVERSATION ADS,Resources,Surveys,A44136,
http://opendatacommunities.org/id/london-borough-council/sutton,London Borough of Sutton,25/09/2021,10004053,82.04, LINKEDIN-685 0656993,STRONGER SUTTON CONVERSATION ADS,Resources,Surveys,A44136,
http://opendatacommunities.org/id/london-borough-council/sutton,London Borough of Sutton,23/09/2021,10004053,500.00, GOOGLE  ADS8517410550,STRONGER SUTTON CONVERSATION ADS,Resources,Surveys,A44136,
http://opendatacommunities.org/id/london-borough-council/sutton,London Borough of Sutton,21/09/2021,10004053,200.00, FACEBK JGCL27XFR2,STRONGER SUTTON CONVERSATION ADS,Resources,Surveys,A44136,
http://opendatacommunities.org/id/london-borough-council/sutton,London Borough of Sutton,19/09/2021,10004053,200.00, FACEBK 8VBEZ7XER2,STRONGER SUTTON CONVERSATION ADS,Resources,Surveys,A44136,
http://opendatacommunities.org/id/london-borough-council/sutton,London Borough of Sutton,19/09/2021,10004053,500.00, GOOGLE  ADS8517410550,STRONGER SUTTON CONVERSATION ADS,Resources,Surveys,A44136,
http://opendatacommunities.org/id/london-borough-council/sutton,London Borough of Sutton,18/09/2021,10004053,3.67, TWITTER ONLINE ADS,STRONGER SUTTON CONVERSATION ADS,Resources,Surveys,A44136,
http://opendatacommunities.org/id/london-borough-council/sutton,London Borough of Sutton,17/09/2021,10004053,12.14, FACEBK VWXZW6XFR2,STRONGER SUTTON CONVERSATION ADS,Resources,Surveys,A44136,
http://opendatacommunities.org/id/london-borough-council/sutton,London Borough of Sutton,16/09/2021,10004053,200.00, FACEBK V3LYL8FFR2,STRONGER SUTTON CONVERSTION ADS,Resources,Surveys,A44136,
http://opendatacommunities.org/id/london-borough-council/sutton,London Borough of Sutton,14/09/2021,10004053,200.00, FACEBK 5DHQV7XER2,STRONGER SUTTON CONVERSATION ADS,Resources,Operating Leases,A44137,
http://opendatacommunities.org/id/london-borough-council/sutton,London Borough of Sutton,21/09/2021,10004053,219.79, MAILCHIMP,MAILCHIMP SUBSCRIPTION,Resources,Communications,A45025,
http://opendatacommunities.org/id/london-borough-council/sutton,London Borough of Sutton,26/08/2021,10004053,514.14, CURRYS ONLINE,TABLETS FOR ENGAGEMENT EVENTS,Resources,Communication Support,H10018,
http://opendatacommunities.org/id/london-borough-council/sutton,London Borough of Sutton,09/09/2021,10004053,80.00, TWITTER ONLINE ADS,STRONGER SUTTON CONVERSATION ADS,Resources,Surveys,A44136,
http://opendatacommunities.org/id/london-borough-council/sutton,London Borough of Sutton,24/09/2021,10004053,378.94, ARGOS LTD,CL&G,Resources,"Grants, Contributions & Donations",A47005,
http://opendatacommunities.org/id/london-borough-council/sutton,London Borough of Sutton,24/09/2021,10004053,304.00, CURRYS ONLINE,CL&G,Resources,"Grants, Contributions & Donations",A47005,
http://opendatacommunities.org/id/london-borough-council/sutton,London Borough of Sutton,23/09/2021,10004053,188.95, ARGOS LTD,CL&G,Resources,"Grants, Contributions & Donations",A47005,
http://opendatacommunities.org/id/london-borough-council/sutton,London Borough of Sutton,23/09/2021,10004053,219.99, ARGOS LTD,CL&G,Resources,"Grants, Contributions & Donations",A47005,
http://opendatacommunities.org/id/london-borough-council/sutton,London Borough of Sutton,22/09/2021,10004053,45.60, PAYPAL  ADDONS,CL&G,Resources,"Grants, Contributions & Donations",A47005,
http://opendatacommunities.org/id/london-borough-council/sutton,London Borough of Sutton,21/09/2021,10004053,508.95, ARGOS LTD,CL&G,Resources,"Grants, Contributions & Donations",A47005,
http://opendatacommunities.org/id/london-borough-council/sutton,London Borough of Sutton,21/09/2021,10004053,512.94, ARGOS LTD,CL&G,Resources,"Grants, Contributions & Donations",A47005,
http://opendatacommunities.org/id/london-borough-council/sutton,London Borough of Sutton,21/09/2021,10004053,126.95, ARGOS LTD,CL&G,Resources,"Grants, Contributions & Donations",A47005,
http://opendatacommunities.org/id/london-borough-council/sutton,London Borough of Sutton,20/09/2021,10004053,294.95, ARGOS LTD,CL&G,Resources,"Grants, Contributions & Donations",A47005,
http://opendatacommunities.org/id/london-borough-council/sutton,London Borough of Sutton,20/09/2021,10004053,528.93, ARGOS LTD,CL&G,Resources,"Grants, Contributions & Donations",A47005,
http://opendatacommunities.org/id/london-borough-council/sutton,London Borough of Sutton,20/09/2021,10004053,393.99, CURRYS ONLINE,CL&G,Resources,"Grants, Contributions & Donations",A47005,
http://opendatacommunities.org/id/london-borough-council/sutton,London Borough of Sutton,20/09/2021,10004053,173.95, ARGOS LTD,CL&G,Resources,"Grants, Contributions & Donations",A47005,
http://opendatacommunities.org/id/london-borough-council/sutton,London Borough of Sutton,20/09/2021,10004053,139.99, ARGOS LTD,CL&G,Resources,"Grants, Contributions & Donations",A47005,
http://opendatacommunities.org/id/london-borough-council/sutton,London Borough of Sutton,17/09/2021,10004053,231.94, ARGOS LTD,CL&G,Resources,"Grants, Contributions & Donations",A47005,
http://opendatacommunities.org/id/london-borough-council/sutton,London Borough of Sutton,16/09/2021,10004053,274.00, CURRYS ONLINE,CL&G,Resources,"Grants, Contributions & Donations",A47005,
http://opendatacommunities.org/id/london-borough-council/sutton,London Borough of Sutton,15/09/2021,10004053,45.06, PAYPAL  GSUITEADDON,CL&G,Resources,"Grants, Contributions & Donations",A47005,
http://opendatacommunities.org/id/london-borough-council/sutton,London Borough of Sutton,15/09/2021,10004053,288.95, ARGOS LTD,CL&G,Resources,"Grants, Contributions & Donations",A47005,
http://opendatacommunities.org/id/london-borough-council/sutton,London Borough of Sutton,15/09/2021,10004053,503.99, CURRYS ONLINE,CL&G,Resources,"Grants, Contributions & Donations",A47005,
http://opendatacommunities.org/id/london-borough-council/sutton,London Borough of Sutton,15/09/2021,10004053,508.99, CURRYS ONLINE,CL&G,Resources,"Grants, Contributions & Donations",A47005,
http://opendatacommunities.org/id/london-borough-council/sutton,London Borough of Sutton,15/09/2021,10004053,203.95, ARGOS LTD,CL&G,Resources,"Grants, Contributions & Donations",A47005,
http://opendatacommunities.org/id/london-borough-council/sutton,London Borough of Sutton,14/09/2021,10004053,490.95, ARGOS LTD,CL&G,Resources,"Grants, Contributions & Donations",A47005,
http://opendatacommunities.org/id/london-borough-council/sutton,London Borough of Sutton,14/09/2021,10004053,291.95, ARGOS LTD,CL&G,Resources,"Grants, Contributions & Donations",A47005,
http://opendatacommunities.org/id/london-borough-council/sutton,London Borough of Sutton,14/09/2021,10004053,219.99, ARGOS LTD,CL&G,Resources,"Grants, Contributions & Donations",A47005,
http://opendatacommunities.org/id/london-borough-council/sutton,London Borough of Sutton,10/09/2021,10004053,375.95, ARGOS LTD,CL&G,Resources,"Grants, Contributions & Donations",A47005,
http://opendatacommunities.org/id/london-borough-council/sutton,London Borough of Sutton,10/09/2021,10004053,365.00, ARGOS LTD,CL&G,Resources,"Grants, Contributions & Donations",A47005,
http://opendatacommunities.org/id/london-borough-council/sutton,London Borough of Sutton,09/09/2021,10004053,483.99, CURRYS ONLINE,CL&G,Resources,"Grants, Contributions & Donations",A47005,
http://opendatacommunities.org/id/london-borough-council/sutton,London Borough of Sutton,08/09/2021,10004053,193.95, ARGOS LTD,CL&G,Resources,"Grants, Contributions & Donations",A47005,
http://opendatacommunities.org/id/london-borough-council/sutton,London Borough of Sutton,07/09/2021,10004053,334.00, CURRYS ONLINE,CL&G,Resources,"Grants, Contributions & Donations",A47005,
http://opendatacommunities.org/id/london-borough-council/sutton,London Borough of Sutton,06/09/2021,10004053,240.00, ARGOS LTD,CL&G,Resources,"Grants, Contributions & Donations",A47005,
http://opendatacommunities.org/id/london-borough-council/sutton,London Borough of Sutton,06/09/2021,10004053,421.94, ARGOS LTD,CL&G,Resources,"Grants, Contributions & Donations",A47005,
http://opendatacommunities.org/id/london-borough-council/sutton,London Borough of Sutton,05/09/2021,10004053,-190.00, ARGOS LTD,CL&G,Resources,"Grants, Contributions & Donations",A47005,
http://opendatacommunities.org/id/london-borough-council/sutton,London Borough of Sutton,03/09/2021,10004053,83.95, ARGOS LTD,CL&G,Resources,"Grants, Contributions & Donations",A47005,
http://opendatacommunities.org/id/london-borough-council/sutton,London Borough of Sutton,03/09/2021,10004053,648.99, CURRYS ONLINE,CL&G,Resources,"Grants, Contributions & Donations",A47005,
http://opendatacommunities.org/id/london-borough-council/sutton,London Borough of Sutton,03/09/2021,10004053,304.99, ARGOS LTD,CL&G,Resources,"Grants, Contributions & Donations",A47005,
http://opendatacommunities.org/id/london-borough-council/sutton,London Borough of Sutton,03/09/2021,10004053,83.95, ARGOS LTD,CL&G,Resources,"Grants, Contributions & Donations",A47005,
http://opendatacommunities.org/id/london-borough-council/sutton,London Borough of Sutton,01/09/2021,10004053,244.99, CURRYS ONLINE,CL&G,Resources,"Grants, Contributions & Donations",A47005,
http://opendatacommunities.org/id/london-borough-council/sutton,London Borough of Sutton,31/08/2021,10004053,284.00, CURRYS ONLINE,CL&G,Resources,"Grants, Contributions & Donations",A47005,
http://opendatacommunities.org/id/london-borough-council/sutton,London Borough of Sutton,26/08/2021,10004053,-150.00, ARGOS LTD,CL&G,Resources,"Grants, Contributions & Donations",A47005,
http://opendatacommunities.org/id/london-borough-council/sutton,London Borough of Sutton,26/08/2021,10004053,921.93, ARGOS LTD,CL&G,Resources,"Grants, Contributions & Donations",A47005,
http://opendatacommunities.org/id/london-borough-council/sutton,London Borough of Sutton,25/08/2021,10004053,131.95, ARGOS LTD,CL&G,Resources,"Grants, Contributions & Donations",A47005,
http://opendatacommunities.org/id/london-borough-council/sutton,London Borough of Sutton,24/08/2021,10004053,-41.80, CURRYS ONLINE,CL&G,Resources,"Grants, Contributions & Donations",A47005,
http://opendatacommunities.org/id/london-borough-council/sutton,London Borough of Sutton,28/08/2021,10004053,33.33, TFL OYSTER AUTO TOPUP,TRAVEL FOR REVENUES STAFF,Resources,C.C.A Travel & Subsistance,A61010,
http://opendatacommunities.org/id/london-borough-council/sutton,London Borough of Sutton,16/09/2021,10004053,16.67, TFL OYSTER AUTO TOPUP,TRAVEL FOR BENEFITS STAFF,Resources,C.C.A Travel & Subsistance,A61010,
http://opendatacommunities.org/id/london-borough-council/sutton,London Borough of Sutton,25/08/2021,10004053,1.50, WWW.GOV.UK,WILL AND GRANT ORDER,Resources,Legal Services,A44025,
http://opendatacommunities.org/id/london-borough-council/sutton,London Borough of Sutton,05/09/2021,10004053,41.97, AMAZON.CO.UK RJ2053EC5,BATTERIES FOR OFFICE,Environment Housing and Neighbourhoods,Stationery,A43015,
http://opendatacommunities.org/id/london-borough-council/sutton,London Borough of Sutton,09/09/2021,10004053,"1,570.00", TSRGD.CO.UK,ONLINE SUBSCRIPTION TO TSRGD,Environment Housing and Neighbourhoods,Subscriptions,A47010,
http://opendatacommunities.org/id/london-borough-council/sutton,London Borough of Sutton,10/09/2021,10004053,150.00, SUTTON COMMUNITY DANCE,VENUE HIRE FOR AWAYDAY ON 16TH SEPTEMBER,Environment Housing and Neighbourhoods,Hire of Rooms,A22010,
http://opendatacommunities.org/id/london-borough-council/sutton,London Borough of Sutton,02/09/2021,10004053,123.24, AMZNMKTPLACE,"SPLIT - KODAK PD460 DOCK PLUS 4X6"" INSTANT PHOTO PRINTER, BLUETOOTH WIRELESS PHOTOGRAPHIC PRINTER, COMPATIBLE WITH ANDROID AND APPLE DEVICES, 90 PHOTOS INCLUD (100%)",Peoples Services,Equipment And Materials Purchase,A40000,
http://opendatacommunities.org/id/london-borough-council/sutton,London Borough of Sutton,01/09/2021,10004053,22.00, HMCOURTS-SERVICE.G,COURT FEE,Peoples Services,Court Cost Fees,A44027,
http://opendatacommunities.org/id/london-borough-council/sutton,London Borough of Sutton,16/09/2021,10004053,16.67, EVERYONE ACTIVE-DOM,GYM ACCESS FOR A YOUNG PERSON PART OF THEIR PROGRAMME A61011 G00440,Peoples Services,Client Care/Assistance,A61011,
http://opendatacommunities.org/id/london-borough-council/sutton,London Borough of Sutton,28/08/2021,10004053,9.68, AMZNMKTPLACE,SPLIT - 5 STAR COLOURED COPIER PAPER MULTIFUNCTIONAL REAM-WRAPPED 80GSM A4 MEDIUM YELLOW [500 SHEETS] (100%),Peoples Services,Equipment And Materials Purchase,A40000,
http://opendatacommunities.org/id/london-borough-council/sutton,London Borough of Sutton,20/09/2021,10004053,18.33, LBS REGISTRARS,BIRTH CERT FOR LEGAL PROCEEDINGS A49000 G03040 9999,Peoples Services,Miscellaneous Expenses,A49000,
http://opendatacommunities.org/id/london-borough-council/sutton,London Borough of Sutton,20/09/2021,10004053,18.33, LBS REGISTRARS,BIRTH CERT FOR LEGAL PROCEEDINGS A49000 G03040 9999,Peoples Services,Miscellaneous Expenses,A49000,
http://opendatacommunities.org/id/london-borough-council/sutton,London Borough of Sutton,20/09/2021,10004053,18.33, LBS REGISTRARS,BIRTH CERT FOR LEGAL PROCEEDINGS A49000 G03040,Peoples Services,Miscellaneous Expenses,A49000,
http://opendatacommunities.org/id/london-borough-council/sutton,London Borough of Sutton,20/09/2021,10004053,11.50, SAINSBURYS SUPERMA,DR,Peoples Services,Miscellaneous Expenses,A49000,
http://opendatacommunities.org/id/london-borough-council/sutton,London Borough of Sutton,19/09/2021,10004053,7.99, DGC WOODCOTE GREEN,XMAS PRESENT,Peoples Services,Miscellaneous Expenses,A49000,
http://opendatacommunities.org/id/london-borough-council/sutton,London Borough of Sutton,14/09/2021,10004053,320.00, BROADWAY COMPUTERS,RM LAPTOP,Peoples Services,Miscellaneous Expenses,A49000,
http://opendatacommunities.org/id/london-borough-council/sutton,London Borough of Sutton,09/09/2021,10004053,34.00, DVLA DRIVER ONLINE,MC DL,Peoples Services,Miscellaneous Expenses,A49000,
http://opendatacommunities.org/id/london-borough-council/sutton,London Borough of Sutton,08/09/2021,10004053,34.00, DVLA DRIVER ONLINE,RM DL,Peoples Services,Miscellaneous Expenses,A49000,
http://opendatacommunities.org/id/london-borough-council/sutton,London Borough of Sutton,07/09/2021,10004053,8.35, MCDONALDS,RM ACTIVITY,Peoples Services,Miscellaneous Expenses,A49000,
http://opendatacommunities.org/id/london-borough-council/sutton,London Borough of Sutton,14/09/2021,10004053,25.00, GEN REGISTER OFFICE,BIRTH CERTIFICATE NEEDED FOR PASSPORT APPLICATION,Peoples Services,Miscellaneous Expenses,A49000,
http://opendatacommunities.org/id/london-borough-council/sutton,London Borough of Sutton,14/09/2021,10004053,22.00, LBS REGISTRARS,BIRTH CERTIFICATE NEEDED FOR PASSPORT APPLICATION,Peoples Services,Miscellaneous Expenses,A49000,
http://opendatacommunities.org/id/london-borough-council/sutton,London Borough of Sutton,14/09/2021,10004053,25.00, GEN REGISTER OFFICE,BIRTH CERTIFICATE NEEDED FOR PASSPORT APPLICATION,Peoples Services,Miscellaneous Expenses,A49000,
http://opendatacommunities.org/id/london-borough-council/sutton,London Borough of Sutton,15/09/2021,10004053,233.33, TOOTING CARPETS,CARPETING FITTING FOR A YOUNG PERSON A61021 G03040,Peoples Services,Set Up Costs - Children Leaving Care,A61021,
http://opendatacommunities.org/id/london-borough-council/sutton,London Borough of Sutton,15/09/2021,10004053,333.33, TOOTING CARPETS,CARPET FITTING FOR A YOUNG PERSON A61021 G03040,Peoples Services,Set Up Costs - Children Leaving Care,A61021,
http://opendatacommunities.org/id/london-borough-council/sutton,London Borough of Sutton,16/09/2021,10004053,290.83, CURRYS ONLINE,ITEMS NEEDED FOR A CLIENT A61021 G03040,Peoples Services,Set Up Costs - Children Leaving Care,A61021,
http://opendatacommunities.org/id/london-borough-council/sutton,London Borough of Sutton,13/09/2021,10004053,-289.99, ARGOS LTD,ITEM NO LONGER NEEDED FOR THE YOUNG PERSON,Peoples Services,Set Up Costs - Children Leaving Care,A61021,
http://opendatacommunities.org/id/london-borough-council/sutton,London Borough of Sutton,22/09/2021,10004053,45.00, ARGOS LTD,SW SET TUP,Peoples Services,Set Up Costs - Children Leaving Care,A61021,
http://opendatacommunities.org/id/london-borough-council/sutton,London Borough of Sutton,27/08/2021,10004053,29.69, AMZNMKTPLACE,SPLIT - MODERN BATHROOM BATH SHOWER FILLER MIXER TAP SINGLE LEVER CHROME SOLID BRASS WITH SHOWER HANDSET AND HOSE ATTACHMENT (100%),Peoples Services,Set Up Costs - Children Leaving Care,A61021,
http://opendatacommunities.org/id/london-borough-council/sutton,London Borough of Sutton,26/08/2021,10004053,69.99, AMZNMKTPLACE,"SPLIT - JAJIBOT CORDED HANDHELD STICK VACUUM CLEANER 15000PA LIGHTWEIGHT BAGLESS UPRIGHT STICK VACUUM CLEANERS WITH HEPA FILTRATION, 500W MOTOR, 6M POWER CORD (51.85%)",Peoples Services,Set Up Costs - Children Leaving Care,A61021,
http://opendatacommunities.org/id/london-borough-council/sutton,London Borough of Sutton,26/08/2021,10004053,64.99, AMZNMKTPLACE,"SPLIT - EMPERIAL 750W FOOD PROCESSOR - BLENDER, CHOPPER, MULTI MIXER MACHINE WITH DOUGH BLADE, SHREDDER, JUICER & GRATER ATTACHMENTS - MULTIFUNCTIONAL - 2L MI (48.15%)",Peoples Services,Set Up Costs - Children Leaving Care,A61021,
http://opendatacommunities.org/id/london-borough-council/sutton,London Borough of Sutton,26/08/2021,10004053,14.75, AMZNMKTPLACE,SPLIT - EVELYN LIVING 2 TIER DISH DRAINER RACK STAINLESS STEEL ORGANISER UTENSIL HOLDER AND CUP GLASS HOLDER DISHES PLATES BOWLS CUPS DRIP TRAY SPOONS KITCHEN (100%),Peoples Services,Set Up Costs - Children Leaving Care,A61021,
http://opendatacommunities.org/id/london-borough-council/sutton,London Borough of Sutton,02/09/2021,10004053,30.58, TRAVELODGE,HOTEL NEEDED FOR CLIENT,Peoples Services,C.C.A Rent & Utilities,A61009,
http://opendatacommunities.org/id/london-borough-council/sutton,London Borough of Sutton,02/09/2021,10004053,26.33, TRAVELODGE,HOTEL NEEDED FOR CLIENT,Peoples Services,C.C.A Rent & Utilities,A61009,
http://opendatacommunities.org/id/london-borough-council/sutton,London Borough of Sutton,26/08/2021,10004053,76.92, MINICABIT,CLIENT NEEDED TRANPSORT TO AND FROM COURT,Peoples Services,C.C.A Travel & Subsistance,A61010,
http://opendatacommunities.org/id/london-borough-council/sutton,London Borough of Sutton,24/09/2021,10004053,10.00, TRACK CARS,TAXI FOR A YOUNG PERSON A61010 G03050,Peoples Services,C.C.A Travel & Subsistance,A61010,
http://opendatacommunities.org/id/london-borough-council/sutton,London Borough of Sutton,27/08/2021,10004053,37.38, TRAVELODGE,HOTEL NEEDED FOR CLIENT,Peoples Services,Payments Under the Child Care Act 1980,A61018,
http://opendatacommunities.org/id/london-borough-council/sutton,London Borough of Sutton,09/09/2021,10004053,49.98, AMZNMKTPLACE,FOLDERS NEEDED FOR THE HOME,Peoples Services,Equipment And Materials Purchase,A40000,
http://opendatacommunities.org/id/london-borough-council/sutton,London Borough of Sutton,15/09/2021,10004053,13.79, AMZNMKTPLACE,"SPLIT - MINI FIRST AID KIT, 92 PIECES SMALL FIRST AID KIT - INCLUDES EMERGENCY FOIL BLANKET, SCISSORS FOR TRAVEL, HOME, OFFICE, VEHICLE, CAMPING, WORKPLACE & A40000 G03070 (76.82%)",Peoples Services,Equipment And Materials Purchase,A40000,
http://opendatacommunities.org/id/london-borough-council/sutton,London Borough of Sutton,15/09/2021,10004053,4.16, AMZNMKTPLACE,BALANCING ENTRY AMOUNT (23.18%),Peoples Services,Equipment And Materials Purchase,A40000,
http://opendatacommunities.org/id/london-borough-council/sutton,London Borough of Sutton,16/09/2021,10004053,4.49, AMZNMKTPLACE,SPLIT - 10PCS A5 CLEAR PLASTIC FILE BAGS FILE FOLDERS ZIP BAGS (A5-CLEAR-10PCS) A40000 G03070 (64.33%),Peoples Services,Equipment And Materials Purchase,A40000,
http://opendatacommunities.org/id/london-borough-council/sutton,London Borough of Sutton,16/09/2021,10004053,2.49, AMZNMKTPLACE,BALANCING ENTRY AMOUNT (35.67%),Peoples Services,Equipment And Materials Purchase,A40000,
http://opendatacommunities.org/id/london-borough-council/sutton,London Borough of Sutton,14/09/2021,10004053,39.00, HOTEL AT BOOKING.COM,HOTEL NEEDED FOR SUPERVISED CONTACT,Peoples Services,Equipment And Materials Purchase,A40000,
http://opendatacommunities.org/id/london-borough-council/sutton,London Borough of Sutton,20/09/2021,10004053,41.67, DUNELM,ITEMS NEEDED FOR YOUNG PERSON A49000 G03070,Peoples Services,Miscellaneous Expenses,A49000,
http://opendatacommunities.org/id/london-borough-council/sutton,London Borough of Sutton,16/09/2021,10004053,20.82, WWW.PROFESSIONALBOOKS.,BOOKS NEEDED FOR YOUNG PERSON A49000 G03080,Peoples Services,Miscellaneous Expenses,A49000,
http://opendatacommunities.org/id/london-borough-council/sutton,London Borough of Sutton,16/09/2021,10004053,10.82, WHSMITH.CO.UK,CALCULATOR NEEDED FOR A YOUNG PERSON A49000 G03080,Peoples Services,Miscellaneous Expenses,A49000,
http://opendatacommunities.org/id/london-borough-council/sutton,London Borough of Sutton,19/09/2021,10004053,37.95, AMZNMKTPLACE,SPLIT - BLACK HAMMER MENS LEATHER SAFETY BOOTS STEEL TOE CAP WORK SHOES S3 SRC ANKLE LEATHER BROWN TAN 5007 (8 UK)  A60008 G03080 (62.79%),Peoples Services,Education Allowance,A60008,
http://opendatacommunities.org/id/london-borough-council/sutton,London Borough of Sutton,19/09/2021,10004053,10.50, AMZNMKTPLACE,"SPLIT - DR�GER SAFETY OVER GLASSES X-PECT 8120 | 1 PAIR | ANTI-SCRATCH EYE PROTECTIVE WORKPLACE GOGGLES FOR PROFESSIONAL OR PERSONAL USE | FOR CONSTRUCTION, (17.37%)",Peoples Services,Education Allowance,A60008,
http://opendatacommunities.org/id/london-borough-council/sutton,London Borough of Sutton,21/09/2021,10004053,20.99, AMZNMKTPLACE,SPLIT - ARMY AND WORKWEAR COLOUR: BLACK | SIZE: S SMALL | USAGE: MECHANIC BUILDERS PLUMBERS PLASTERERS FARMERS RECOVERY PAINTBALL CLEANERS A60008 G03080 (100%),Peoples Services,Education Allowance,A60008,
http://opendatacommunities.org/id/london-borough-council/sutton,London Borough of Sutton,19/09/2021,10004053,11.99, AMZNMKTPLACE,"SPLIT - HANDLANDY MENS WORK GLOVES TOUCH SCREEN, SYNTHETIC LEATHER UTILITY GARDENING GLOVES, FLEXIBLE BREATHABLE SPANDEX BACK- PADDED KNUCKLES & PALM (LARGE/S (19.84%)",Peoples Services,Education Allowance,A60008,
http://opendatacommunities.org/id/london-borough-council/sutton,London Borough of Sutton,23/09/2021,10004053,13.33, SQ  ROSEHILL CARS LTD,TAXI FOR A YOUNG PERSON A61010 G03080,Peoples Services,C.C.A Travel & Subsistance,A61010,
http://opendatacommunities.org/id/london-borough-council/sutton,London Borough of Sutton,23/09/2021,10004053,159.75, MACDONALD BURLINGTON,HOTEL NEEDED FOR CLIENT A61010 G03080,Peoples Services,C.C.A Travel & Subsistance,A61010,
http://opendatacommunities.org/id/london-borough-council/sutton,London Borough of Sutton,02/09/2021,10004053,954.97, ARGOS LTD,HOME APPLIANCES,Peoples Services,Set Up Costs - Children Leaving Care,A61021,
http://opendatacommunities.org/id/london-borough-council/sutton,London Borough of Sutton,02/09/2021,10004053,954.97, ARGOS LTD,HOME APPLIANCES,Peoples Services,Set Up Costs - Children Leaving Care,A61021,
http://opendatacommunities.org/id/london-borough-council/sutton,London Borough of Sutton,02/09/2021,10004053,41.66, ARGOS LTD,ITEMS NEEDED FOR YP,Peoples Services,Set Up Costs - Children Leaving Care,A61021,
http://opendatacommunities.org/id/london-borough-council/sutton,London Borough of Sutton,26/08/2021,10004053,-27.50, LBS REGISTRARS,REFUND FROM REGISTRAR OFFICE,Peoples Services,Equipment And Materials Purchase,A40000,
http://opendatacommunities.org/id/london-borough-council/sutton,London Borough of Sutton,26/08/2021,10004053,-27.50, LBS REGISTRARS,REFUND FROM REGISTRAR OFFICE,Peoples Services,Equipment And Materials Purchase,A40000,
http://opendatacommunities.org/id/london-borough-council/sutton,London Borough of Sutton,24/09/2021,10004053,416.67, HOLIDAY INNS,HOTEL NEEDED FOR CLIENT A61011 G0310,Peoples Services,Client Care/Assistance,A61011,
http://opendatacommunities.org/id/london-borough-council/sutton,London Borough of Sutton,26/08/2021,10004053,66.25, POST OFFICE COUNTER,PASSPORT APPLICATION FOR A CHILD LOOKED AFTER,Peoples Services,Equipment And Materials Purchase,A40000,
http://opendatacommunities.org/id/london-borough-council/sutton,London Borough of Sutton,17/09/2021,10004053,159.90, ZOOM.US 888-799-9666,ZOOM NEEDED FOR A TEAM A47010 G03100,Peoples Services,"Grants, Contributions & Donations",A47005,
http://opendatacommunities.org/id/london-borough-council/sutton,London Borough of Sutton,08/09/2021,10004053,68.33, WWW.WIGHTLINK.CO.UK,FERRY NEEDED FOR A VISIT,Peoples Services,Equipment And Materials Purchase,A40000,
http://opendatacommunities.org/id/london-borough-council/sutton,London Borough of Sutton,14/09/2021,10004053,20.00, LBRUT INTERNET,BIRTH CERTIFICATE NEEDED FOR A CLIENT A49000 G03120,Peoples Services,Miscellaneous Expenses,A49000,
http://opendatacommunities.org/id/london-borough-council/sutton,London Borough of Sutton,14/09/2021,10004053,22.00, LBS REGISTRARS,BIRTH CERTIFICATE NEEDED FOR PASSPORT APPLICATION,Peoples Services,Miscellaneous Expenses,A49000,
http://opendatacommunities.org/id/london-borough-council/sutton,London Borough of Sutton,14/09/2021,10004053,22.00, RBK REGISTER OFFICE,BIRTH CERTIFICATE NEEDED FOR PASSPORT APPLICATION,Peoples Services,Miscellaneous Expenses,A49000,
http://opendatacommunities.org/id/london-borough-council/sutton,London Borough of Sutton,20/09/2021,10004053,18.33, LBS REGISTRARS,BIRTH CERT FOR LEGAL PROCEEDINGS  A49000 G03120,Peoples Services,Miscellaneous Expenses,A49000,
http://opendatacommunities.org/id/london-borough-council/sutton,London Borough of Sutton,20/09/2021,10004053,18.33, LBS REGISTRARS,BIRTH CERT FOR LEGAL PROCEEDINGS A49000 G03120,Peoples Services,Miscellaneous Expenses,A49000,
http://opendatacommunities.org/id/london-borough-council/sutton,London Borough of Sutton,20/09/2021,10004053,18.33, LBS REGISTRARS,BIRTH CERT FOR LEGAL PROCEEDINGS  A49000 G03120,Peoples Services,Miscellaneous Expenses,A49000,
http://opendatacommunities.org/id/london-borough-council/sutton,London Borough of Sutton,02/09/2021,10004053,"1,202.38", TRAVELODGE,HOTEL NEEDED FOR CLIENT THAT HAS NO RECOURSE TO PUBLIC FUNDS,Peoples Services,C.C.A Rent & Utilities,A61009,
http://opendatacommunities.org/id/london-borough-council/sutton,London Borough of Sutton,16/09/2021,10004053,"1,060.67", TRAVELODGE,CLIENTS RECORDED AS HOMELESS THEREFORE NEED ACCOMMODATION  A61009 G03160,Peoples Services,C.C.A Rent & Utilities,A61009,
http://opendatacommunities.org/id/london-borough-council/sutton,London Borough of Sutton,27/08/2021,10004053,"3,870.78", TRAVELODGE,TRAVELODGE EXPENSE SPLIT,Peoples Services,Payments Under the Child Care Act 1980,A61018,
http://opendatacommunities.org/id/london-borough-council/sutton,London Borough of Sutton,20/09/2021,10004053,70.00, FACEBK 3MC3K6KH32,FACEBOOK ADVERTISING FOR FOSTERING RECRUITMENT,Peoples Services,Recruitment Expenses,A15026,
http://opendatacommunities.org/id/london-borough-council/sutton,London Borough of Sutton,14/09/2021,10004053,70.00, FACEBK 9PTPX4KG32,FACEBOOK ADVERTISING FOR FOSTERING RECRUITMENT,Peoples Services,Recruitment Expenses,A15026,
http://opendatacommunities.org/id/london-borough-council/sutton,London Borough of Sutton,27/08/2021,10004053,5.39, FACEBK  LJZ5N5PG32,FACEBOOK ADVERTISING FOR FOSTERING RECRUITMENT,Peoples Services,Recruitment Expenses,A15026,
http://opendatacommunities.org/id/london-borough-council/sutton,London Borough of Sutton,27/09/2021,10004053,48.15, FACEBK RJ5NR6KH32,FACEBOOK ADVERTISING FOR FOSTER CARER RECRUITMENT,Peoples Services,Recruitment Expenses,A15026,
http://opendatacommunities.org/id/london-borough-council/sutton,London Borough of Sutton,26/08/2021,10004053,70.00, FACEBK  QQ2TM5PG32,FACEBOOK ADVERTISING FOR FOSTERING RECRUITMENT,Peoples Services,Recruitment Expenses,A15026,
http://opendatacommunities.org/id/london-borough-council/sutton,London Borough of Sutton,30/08/2021,10004053,159.90, ZOOM.US 888-799-9666,ZOOM NEEDED FOR TEAM,Peoples Services,Subscriptions,A47010,
http://opendatacommunities.org/id/london-borough-council/sutton,London Borough of Sutton,18/09/2021,10004053,756.82, GAR HOTEL RES,HOTEL NEEDED FOR A CLIENT A61011 G03830,Peoples Services,Client Care/Assistance,A61011,
http://opendatacommunities.org/id/london-borough-council/sutton,London Borough of Sutton,23/09/2021,10004053,36.60, WILKO RETAIL LIMITED,"WILKO PARTY PLATES, KNIVES, CUPS AND TABLE CLOTHS",Peoples Services,Equipment And Materials Purchase,A40000,
http://opendatacommunities.org/id/london-borough-council/sutton,London Borough of Sutton,23/09/2021,10004053,21.80, ASDA SUPERSTORE,ASDA PARTY FORKS & SPOONS,Peoples Services,Equipment And Materials Purchase,A40000,
http://opendatacommunities.org/id/london-borough-council/sutton,London Borough of Sutton,20/09/2021,10004053,78.33, BOOKING.COM BV,HOTEL STAY FOR A SOCIAL WORKER A49000 G03840,Peoples Services,Miscellaneous Expenses,A49000,
http://opendatacommunities.org/id/london-borough-council/sutton,London Borough of Sutton,02/09/2021,10004053,640.29, ACCESS SUTTON,STORAGE PAYMENT FOR CLIENTS BELONGINGS,Peoples Services,Storage And Archiving Services,A44085,
http://opendatacommunities.org/id/london-borough-council/sutton,London Borough of Sutton,02/09/2021,10004053,419.75, ACCESS SUTTON,STORAGE PAYMENT FOR CLIENTS BELONGINGS,Peoples Services,Storage And Archiving Services,A44085,
http://opendatacommunities.org/id/london-borough-council/sutton,London Borough of Sutton,02/09/2021,10004053,510.21, ACCESS SUTTON,STORAGE PAYMENT FOR CLIENTS BELONGINGS,Peoples Services,Storage And Archiving Services,A44085,
http://opendatacommunities.org/id/london-borough-council/sutton,London Borough of Sutton,02/09/2021,10004053,587.72, ACCESS SUTTON,STORAGE PAYMENT FOR CLIENTS BELONGINGS,Peoples Services,Storage And Archiving Services,A44085,
http://opendatacommunities.org/id/london-borough-council/sutton,London Borough of Sutton,02/09/2021,10004053,25.49, AMZNMKTPLACE,"SPLIT - FEAGAR LUMBAR PILLOWS BACK SUPPORT CUSHIONS MEMORY FOAM PILLOWS FOR CAR SEAT OFFICE CHAIR HOME SOFA OR COUCH, LOW BACK PILLOW CHAIR CUSHIONS WITH EXTE (49.9%)",Peoples Services,Equipment And Materials Purchase,A40000,
http://opendatacommunities.org/id/london-borough-council/sutton,London Borough of Sutton,02/09/2021,10004053,25.59, AMZNMKTPLACE,"SPLIT - WANTEK WIRED CELL PHONE HEADSET MONO WITH NOISE CANCELLING MIC, 3.5MM PHONE HEADSET FOR IPHONE SAMSUNG GALAXY HUAWEI HTC LG ZTE BLACKBERRY MOBILE PHON (50.1%)",Peoples Services,Equipment And Materials Purchase,A40000,
http://opendatacommunities.org/id/london-borough-council/sutton,London Borough of Sutton,22/09/2021,10004053,314.14, TRAVELODGE,HOTEL NEEDED FOR CLIENT A61011 J64100,Peoples Services,Client Care/Assistance,A61011,
http://opendatacommunities.org/id/london-borough-council/sutton,London Borough of Sutton,10/09/2021,10004053,418.17, CS MORRISONS GIFT CARD,FOOD VOUCHERS FOR START CLIENTS' EMERGENCIES,Peoples Services,Miscellaneous Expenses,A49000,
http://opendatacommunities.org/id/london-borough-council/sutton,London Borough of Sutton,09/09/2021,10004053,422.08, HIGHSTREETVOUCHERS,FOOD VOUCHERS FOR START CLIENTS' EMERGENCIES,Peoples Services,Miscellaneous Expenses,A49000,
http://opendatacommunities.org/id/london-borough-council/sutton,London Borough of Sutton,22/09/2021,10004053,319.60, MULBERRY HOUSE LTD,HOTEL NEEDED FOR CLIENT A49000 J64520,Peoples Services,Miscellaneous Expenses,A49000,
http://opendatacommunities.org/id/london-borough-council/sutton,London Borough of Sutton,14/09/2021,10004053,11.00, LBS REGISTRARS,DEATH CERT,Peoples Services,Funeral Expenses,A44220,
http://opendatacommunities.org/id/london-borough-council/sutton,London Borough of Sutton,02/09/2021,10004053,24.06, AMZNMKTPLACE,WIRELESS DOORBELLS IT DEPT,Health and Wellbeing,IT Hardware Purchase,A45005,
http://opendatacommunities.org/id/london-borough-council/sutton,London Borough of Sutton,08/09/2021,10004053,39.99, ADOBE STOCK,ADOBE 070921 47.99,Health and Wellbeing,Publicity,A44266,
http://opendatacommunities.org/id/london-borough-council/sutton,London Borough of Sutton,06/09/2021,10004053,283.50, WWW.INSTANTPRINT.C,INSTANT PRINT COURSE GUIDE EXTRA 1.5K 340.20 060921,Health and Wellbeing,Publicity,A44266,
http://opendatacommunities.org/id/london-borough-council/sutton,London Borough of Sutton,30/08/2021,10004053,53.97, MAILCHIMP,MAILCHIMP 300821 64.77,Health and Wellbeing,Publicity,A44266,
http://opendatacommunities.org/id/london-borough-council/sutton,London Borough of Sutton,27/08/2021,10004053,196.75, WWW.BULKDEVICES.CO.UK,HARD DRIVE IT,Health and Wellbeing,IT Hardware Purchase,A45005,
http://opendatacommunities.org/id/london-borough-council/sutton,London Borough of Sutton,20/09/2021,10004053,159.00, TVLICENSING.CO.UK,WTH TV LICENCE TO 30/09/2022,Health and Wellbeing,Other Premises Costs,A29040,
http://opendatacommunities.org/id/london-borough-council/sutton,London Borough of Sutton,23/09/2021,10004053,86.87, MARK FISHER,ROCK SALT,Health and Wellbeing,Insurance Claims,A44261,
http://opendatacommunities.org/id/london-borough-council/sutton,London Borough of Sutton,17/09/2021,10004053,64.16, SPORTSDIRECT.COM,SHUTTLECOCKS - BADMINTON KC,Health and Wellbeing,Equipment And Materials Purchase,A40000,
http://opendatacommunities.org/id/london-borough-council/sutton,London Borough of Sutton,09/09/2021,10004053,114.99, SCREWFIX DIRECT,SECOND INTEGRAL COOKER FOR SUPPORTED LEARNING KITCHEN (G6),Health and Wellbeing,Equipment And Materials Purchase,A40000,
http://opendatacommunities.org/id/london-borough-council/sutton,London Borough of Sutton,26/08/2021,10004053,83.32, SCREWFIX DIRECT,COOKER IN G6 KITCHEN ROOM FOR SUPPORTED LEARNING,Health and Wellbeing,Equipment And Materials Purchase,A40000,
http://opendatacommunities.org/id/london-borough-council/sutton,London Borough of Sutton,03/09/2021,10004053,13.32, AMZNMKTPLACE,"SPLIT - ESSENSON OUTDOOR EXPLORER KIT & BUG CATCHER SET WITH BINOCULARS, COMPASS, MAGNIFYING GLASS, BUTTERFLY NET AND BACKPACK FOR 3-10 YEARS OLD BOYS GIRLS A (72.75%)",Peoples Services,LAC - Education,A44280,
http://opendatacommunities.org/id/london-borough-council/sutton,London Borough of Sutton,03/09/2021,10004053,5.99, AMZNMKTPLACE,SPLIT - FIRST FACTS BUGS (27.25%),Peoples Services,LAC - Education,A44280,
http://opendatacommunities.org/id/london-borough-council/sutton,London Borough of Sutton,02/09/2021,10004053,13.32, AMZNMKTPLACE,"SPLIT - ESSENSON OUTDOOR EXPLORER KIT & BUG CATCHER SET WITH BINOCULARS, COMPASS, MAGNIFYING GLASS, BUTTERFLY NET AND BACKPACK FOR 3-10 YEARS OLD BOYS GIRLS A (72.75%)",Peoples Services,LAC - Education,A44280,
http://opendatacommunities.org/id/london-borough-council/sutton,London Borough of Sutton,02/09/2021,10004053,5.99, AMZNMKTPLACE,SPLIT - FIRST FACTS BUGS (27.25%),Peoples Services,LAC - Education,A44280,
http://opendatacommunities.org/id/london-borough-council/sutton,London Borough of Sutton,02/09/2021,10004053,13.32, AMZNMKTPLACE AMAZON.CO,"SPLIT - ESSENSON OUTDOOR EXPLORER KIT & BUG CATCHER SET WITH BINOCULARS, COMPASS, MAGNIFYING GLASS, BUTTERFLY NET AND BACKPACK FOR 3-10 YEARS OLD BOYS GIRLS A (50%)",Peoples Services,LAC - Education,A44280,
http://opendatacommunities.org/id/london-borough-council/sutton,London Borough of Sutton,02/09/2021,10004053,13.32, AMZNMKTPLACE AMAZON.CO,"SPLIT - ESSENSON OUTDOOR EXPLORER KIT & BUG CATCHER SET WITH BINOCULARS, COMPASS, MAGNIFYING GLASS, BUTTERFLY NET AND BACKPACK FOR 3-10 YEARS OLD BOYS GIRLS A (50%)",Peoples Services,LAC - Education,A44280,
http://opendatacommunities.org/id/london-borough-council/sutton,London Borough of Sutton,02/09/2021,10004053,13.32, AMZNMKTPLACE,"SPLIT - ESSENSON OUTDOOR EXPLORER KIT & BUG CATCHER SET WITH BINOCULARS, COMPASS, MAGNIFYING GLASS, BUTTERFLY NET AND BACKPACK FOR 3-10 YEARS OLD BOYS GIRLS A (72.75%)",Peoples Services,LAC - Education,A44280,
http://opendatacommunities.org/id/london-borough-council/sutton,London Borough of Sutton,02/09/2021,10004053,5.99, AMZNMKTPLACE,SPLIT - FIRST FACTS BUGS (27.25%),Peoples Services,LAC - Education,A44280,
http://opendatacommunities.org/id/london-borough-council/sutton,London Borough of Sutton,02/09/2021,10004053,5.99, AMZNMKTPLACE AMAZON.CO,SPLIT - FIRST FACTS BUGS (27.25%),Peoples Services,LAC - Education,A44280,
http://opendatacommunities.org/id/london-borough-council/sutton,London Borough of Sutton,02/09/2021,10004053,13.32, AMZNMKTPLACE AMAZON.CO,"SPLIT - ESSENSON OUTDOOR EXPLORER KIT & BUG CATCHER SET WITH BINOCULARS, COMPASS, MAGNIFYING GLASS, BUTTERFLY NET AND BACKPACK FOR 3-10 YEARS OLD BOYS GIRLS A (72.75%)",Peoples Services,LAC - Education,A44280,
http://opendatacommunities.org/id/london-borough-council/sutton,London Borough of Sutton,02/09/2021,10004053,13.32, AMZNMKTPLACE AMAZON.CO,"SPLIT - ESSENSON OUTDOOR EXPLORER KIT & BUG CATCHER SET WITH BINOCULARS, COMPASS, MAGNIFYING GLASS, BUTTERFLY NET AND BACKPACK FOR 3-10 YEARS OLD BOYS GIRLS A (72.75%)",Peoples Services,LAC - Education,A44280,
http://opendatacommunities.org/id/london-borough-council/sutton,London Borough of Sutton,02/09/2021,10004053,5.99, AMZNMKTPLACE AMAZON.CO,SPLIT - FIRST FACTS BUGS (27.25%),Peoples Services,LAC - Education,A44280,
http://opendatacommunities.org/id/london-borough-council/sutton,London Borough of Sutton,01/09/2021,10004053,13.32, AMZNMKTPLACE AMAZON.CO,"SPLIT - ESSENSON OUTDOOR EXPLORER KIT & BUG CATCHER SET WITH BINOCULARS, COMPASS, MAGNIFYING GLASS, BUTTERFLY NET AND BACKPACK FOR 3-10 YEARS OLD BOYS GIRLS A (72.75%)",Peoples Services,LAC - Education,A44280,
http://opendatacommunities.org/id/london-borough-council/sutton,London Borough of Sutton,01/09/2021,10004053,5.99, AMZNMKTPLACE AMAZON.CO,SPLIT - FIRST FACTS BUGS (27.25%),Peoples Services,LAC - Education,A44280,
http://opendatacommunities.org/id/london-borough-council/sutton,London Borough of Sutton,01/09/2021,10004053,13.32, AMZNMKTPLACE,"SPLIT - ESSENSON OUTDOOR EXPLORER KIT & BUG CATCHER SET WITH BINOCULARS, COMPASS, MAGNIFYING GLASS, BUTTERFLY NET AND BACKPACK FOR 3-10 YEARS OLD BOYS GIRLS A (72.75%)",Peoples Services,LAC - Education,A44280,
http://opendatacommunities.org/id/london-borough-council/sutton,London Borough of Sutton,01/09/2021,10004053,5.99, AMZNMKTPLACE,SPLIT - FIRST FACTS BUGS (27.25%),Peoples Services,LAC - Education,A44280,
http://opendatacommunities.org/id/london-borough-council/sutton,London Borough of Sutton,01/09/2021,10004053,5.99, AMZNMKTPLACE,SPLIT - FIRST FACTS BUGS (27.25%),Peoples Services,LAC - Education,A44280,
http://opendatacommunities.org/id/london-borough-council/sutton,London Borough of Sutton,01/09/2021,10004053,13.32, AMZNMKTPLACE,"SPLIT - ESSENSON OUTDOOR EXPLORER KIT & BUG CATCHER SET WITH BINOCULARS, COMPASS, MAGNIFYING GLASS, BUTTERFLY NET AND BACKPACK FOR 3-10 YEARS OLD BOYS GIRLS A (72.75%)",Peoples Services,LAC - Education,A44280,
http://opendatacommunities.org/id/london-borough-council/sutton,London Borough of Sutton,01/09/2021,10004053,5.99, AMZNMKTPLACE AMAZON.CO,SPLIT - FIRST FACTS BUGS (27.25%),Peoples Services,LAC - Education,A44280,
http://opendatacommunities.org/id/london-borough-council/sutton,London Borough of Sutton,01/09/2021,10004053,13.32, AMZNMKTPLACE AMAZON.CO,"SPLIT - ESSENSON OUTDOOR EXPLORER KIT & BUG CATCHER SET WITH BINOCULARS, COMPASS, MAGNIFYING GLASS, BUTTERFLY NET AND BACKPACK FOR 3-10 YEARS OLD BOYS GIRLS A (72.75%)",Peoples Services,LAC - Education,A44280,
http://opendatacommunities.org/id/london-borough-council/sutton,London Borough of Sutton,01/09/2021,10004053,5.99, AMZNMKTPLACE,SPLIT - FIRST FACTS BUGS (27.25%),Peoples Services,LAC - Education,A44280,
http://opendatacommunities.org/id/london-borough-council/sutton,London Borough of Sutton,01/09/2021,10004053,13.32, AMZNMKTPLACE,"SPLIT - ESSENSON OUTDOOR EXPLORER KIT & BUG CATCHER SET WITH BINOCULARS, COMPASS, MAGNIFYING GLASS, BUTTERFLY NET AND BACKPACK FOR 3-10 YEARS OLD BOYS GIRLS A (72.75%)",Peoples Services,LAC - Education,A44280,
http://opendatacommunities.org/id/london-borough-council/sutton,London Borough of Sutton,26/09/2021,10004053,221.66, AMZNMKTPLACE,"SPLIT - 15.6 INCH LAPTOP (INTEL CELERON 64-BIT, 8GB DDR3 RAM, 128GB SSD, 10000MAH BATTERY, HD WEBCAM, WINDOWS 10 OS PREINSTALLED, 1920 * 1080 FHD IPS DISPLAY) (100%)",Peoples Services,LAC - Education,A44280,
http://opendatacommunities.org/id/london-borough-council/sutton,London Borough of Sutton,15/09/2021,10004053,50.00, AMAZON.CO.UK IC66A7A75,SPLIT - AMAZON LOGO SQUID - AMAZON.CO.UK EGIFT VOUCHER (100%),Peoples Services,LAC - Education,A44280,
http://opendatacommunities.org/id/london-borough-council/sutton,London Borough of Sutton,09/09/2021,10004053,222.35, AMZNMKTPLACE AMAZON.CO,"SPLIT - 15.6 INCH LAPTOP (INTEL CELERON 64-BIT, 8GB DDR3 RAM, 128GB SSD, 10000MAH BATTERY, HD WEBCAM, WINDOWS 10 OS PREINSTALLED, 1920 * 1080 FHD IPS DISPLAY) (98.46%)",Peoples Services,LAC - Education,A44280,
http://opendatacommunities.org/id/london-borough-council/sutton,London Borough of Sutton,09/09/2021,10004053,3.47, AMZNMKTPLACE AMAZON.CO,BALANCING ENTRY AMOUNT (1.54%),Peoples Services,LAC - Education,A44280,
http://opendatacommunities.org/id/london-borough-council/sutton,London Borough of Sutton,08/09/2021,10004053,222.35, AMZNMKTPLACE,"SPLIT - 15.6 INCH LAPTOP (INTEL CELERON 64-BIT, 8GB DDR3 RAM, 128GB SSD, 10000MAH BATTERY, HD WEBCAM, WINDOWS 10 OS PREINSTALLED, 1920 * 1080 FHD IPS DISPLAY) (98.46%)",Peoples Services,LAC - Education,A44280,
http://opendatacommunities.org/id/london-borough-council/sutton,London Borough of Sutton,08/09/2021,10004053,3.47, AMZNMKTPLACE,BALANCING ENTRY AMOUNT (1.54%),Peoples Services,LAC - Education,A44280,
http://opendatacommunities.org/id/london-borough-council/sutton,London Borough of Sutton,05/09/2021,10004053,26.65, AMZNMKTPLACE,"SPLIT - ESSENSON OUTDOOR EXPLORER KIT & BUG CATCHER SET WITH BINOCULARS, COMPASS, MAGNIFYING GLASS, BUTTERFLY NET AND BACKPACK FOR 3-10 YEARS OLD BOYS GIRLS A (72.75%)",Peoples Services,LAC - Education,A44280,
http://opendatacommunities.org/id/london-borough-council/sutton,London Borough of Sutton,05/09/2021,10004053,11.97, AMZNMKTPLACE,SPLIT - FIRST FACTS BUGS (27.25%),Peoples Services,LAC - Education,A44280,
http://opendatacommunities.org/id/london-borough-council/sutton,London Borough of Sutton,05/09/2021,10004053,13.32, AMZNMKTPLACE,"SPLIT - ESSENSON OUTDOOR EXPLORER KIT & BUG CATCHER SET WITH BINOCULARS, COMPASS, MAGNIFYING GLASS, BUTTERFLY NET AND BACKPACK FOR 3-10 YEARS OLD BOYS GIRLS A (72.75%)",Peoples Services,LAC - Education,A44280,
http://opendatacommunities.org/id/london-borough-council/sutton,London Borough of Sutton,05/09/2021,10004053,5.99, AMZNMKTPLACE,SPLIT - FIRST FACTS BUGS (27.25%),Peoples Services,LAC - Education,A44280,
http://opendatacommunities.org/id/london-borough-council/sutton,London Borough of Sutton,03/09/2021,10004053,5.99, AMZNMKTPLACE,SPLIT - FIRST FACTS BUGS (27.25%),Peoples Services,LAC - Education,A44280,
http://opendatacommunities.org/id/london-borough-council/sutton,London Borough of Sutton,03/09/2021,10004053,13.32, AMZNMKTPLACE,"SPLIT - ESSENSON OUTDOOR EXPLORER KIT & BUG CATCHER SET WITH BINOCULARS, COMPASS, MAGNIFYING GLASS, BUTTERFLY NET AND BACKPACK FOR 3-10 YEARS OLD BOYS GIRLS A (72.75%)",Peoples Services,LAC - Education,A44280,
http://opendatacommunities.org/id/london-borough-council/sutton,London Borough of Sutton,03/09/2021,10004053,5.99, AMZNMKTPLACE,SPLIT - FIRST FACTS BUGS (27.25%),Peoples Services,LAC - Education,A44280,
http://opendatacommunities.org/id/london-borough-council/sutton,London Borough of Sutton,03/09/2021,10004053,15.99, AMZNMKTPLACE,"SPLIT - ESSENSON OUTDOOR EXPLORER KIT & BUG CATCHER SET WITH BINOCULARS, COMPASS, MAGNIFYING GLASS, BUTTERFLY NET AND BACKPACK FOR 3-10 YEARS OLD BOYS GIRLS A (72.75%)",Peoples Services,LAC - Education,A44280,
